[Event "Swietokrzyskie GM Chess-ch 2022"]
[Site "Zagnansk"]
[Date "2022.05.04"]
[Round "7.5"]
[White "Szpar, IM Milosz"]
[Black "Budisavljevic, GM Luka"]
[Result "0-1"]
[ECO "C70"]
[WhiteElo "2434"]
[BlackElo "2509"]
[Annotator "TA"]
[PlyCount "120"]
[EventDate "2022.04.29"]
[EventCountry "POL"]
[SourceTitle "playchess.com"]
[Source "ChessBase"]
[SourceQuality "1"]
[TimeControl "40/5400+30:1800+30"]

{[%evp 9,120,22,52,50,42,51,37,24,17,17,19,27,36,25,33,0,0,-33,-25,-33,-36,-56,-58,-51,-45,-52,-49,-55,-39,-50,-41,-50,-54,-49,-35,-33,-17,-36,-1,-40,-39,-36,-27,-45,-25,-57,-29,-36,0,-43,0,-37,-37,-40,-43,-42,-35,-105,-108,-95,-38,-111,-75,-305,-296,-306,-288,-100,0,-193,-181,-87,-50,-60,0,-62,-35,-35,-23,-44,-42,-30,0,-35,-35,-35,-35,-35,-35,-37,-32,-68,-93,-105,-89,-185,-85,-177,-188,-367,-323,-1047,-692,-1033,-851,-1380,-1232,-1516,-1383,-1965,-1964,-29981,-5541]} 1. e4 {[%emt 0:00:06]} e5 {[%emt 0:00:03]} 2. Nf3 {[%emt 0:00:07]} Nc6 {[%emt 0:00:04]} 3. Bb5 {[%emt 0:00:07]} a6 {[%emt 0:00:04]} 4. Ba4 {[%emt 0:00:08]} Bc5 {[%emt 0:00:05]} 5. c3 {[%emt 0:09:52]} Nge7 {[%emt 0:00:05]} 6. d4 {[%emt 0:04:23] C70: Ruy Lopez: 3...a6 4 Ba4, Norwegian and Delayed Schliemann.} exd4 {[%emt 0:00:02]} 7. cxd4 {[%emt 0:00:58]} Bb4+ {[%emt 0:00:01]} 8. Nc3 {[%emt 0:02:28] White is slightly better.} d5 {[%emt 0:00:45]} 9. exd5 {[%emt 0:02:54]} Qxd5 {[%emt 0:00:08]} 10. O-O {[%emt 0:00:59]} Bxc3 {[%emt 0:00:02]} 11. bxc3 {[%emt 0:00:06]} Bg4 $1 {[%emt 0:00:02]} 12. Bb3 {[%emt 0:15:14]} (12. Bxc6+ {is interesting.} Qxc6 13. Re1 Bxf3 14. gxf3 Kd7 15. d5) 12... Bxf3 {[%emt 0:00:02]} 13. Qxf3 {[%emt 0:00:42]} (13. gxf3 $5 {[%cal Rb3d5]} Qh5 14. Kh1 $14) 13... Qxf3 {[%emt 0:00:02]} 14. gxf3 {[%emt 0:00:05] [#]} Na5 $146 {[%emt 0:15:10]} ({Predecessor:} 14... O-O-O 15. Bxf7 Rhf8 16. Be6+ Kb8 17. Bg5 Rxf3 18. Rac1 Rd6 19. Rfe1 Rf8 20. Bh4 Ng6 {1-0 (48) Santos Ruiz,M (2603)-Ivanisevic,I (2604) Dubai 2021}) 15. Ba3 {[%emt 0:11:26] aiming for Rfe1.} Nxb3 {[%emt 0:00:30]} 16. axb3 {[%emt 0:14:51]} Ng6 {[%emt 0:00:30]} 17. Rfe1+ {[%emt 0:00:34]} Kd7 {[%emt 0:00:08]} 18. Re3 {[%emt 0:03:51]} Rae8 {[%emt 0:01:54]} 19. Kf1 {[%emt 0:07:33]} Nh4 {[%emt 0:03:52]} 20. Rae1 {[%emt 0:00:55]} Rxe3 {[%emt 0:04:59]} 21. Rxe3 $15 {[%emt 0:00:14][%mdl 4096] Endgame KRB-KRN} Re8 {[%emt 0:03:36] Prevents Re7+. ...Rxe3 is the strong threat.} (21... Nf5 $5 {[%cal Rf5e3]} 22. Re5 g6 $11) 22. Ke2 {[%emt 0:00:12]} b5 {[%emt 0:06:02]} 23. Bb4 {[%emt 0:02:06]} Nf5 {[%emt 0:04:30]} 24. Re4 {[%emt 0:00:33]} Re6 {[%emt 0:01:28]} 25. Rxe6 {[%emt 0:10:46]} Kxe6 {[%emt 0:00:26] KB-KN} 26. Ba5 {[%emt 0:00:09]} Kd7 {[%emt 0:02:17]} 27. Bb4 {[%emt 0:00:56]} Nh4 {[%emt 0:01:42]} 28. c4 {[%emt 0:02:13]} c6 {[%emt 0:01:29]} 29. Ke3 {[%emt 0:01:06]} f5 {[%emt 0:02:34]} 30. Bf8 {[%emt 0:02:02]} Ng2+ {[%emt 0:01:44]} 31. Kd2 {[%emt 0:00:45]} g6 {[%emt 0:01:46][%cal Bg7g6,Bg6g5][%mdl 32]} 32. Bb4 $1 {[%emt 0:01:37]} g5 {[%emt 0:05:07]} 33. Kd3 {[%emt 0:00:32]} ({White should try} 33. Bc3 $15) 33... Nf4+ $17 {[%emt 0:00:38]} 34. Ke3 {[%emt 0:00:36]} Ke6 {[%emt 0:01:27]} (34... Nh3 $17 {Hoping for ...f4+.} 35. Ke2 h6) 35. Bd2 {[%emt 0:03:56]} (35. Ba5 $1 $15) 35... Nh3 {[%emt 0:01:46]} 36. Be1 $2 {[%emt 0:00:11]} (36. Ke2 $17) 36... h6 $19 {[%emt 0:07:55]} 37. Kd3 {[%emt 0:01:00]} Nf4+ {[%emt 0:00:43]} 38. Ke3 Nh3 {[%emt 0:07:04]} (38... Ng2+ $17 39. Ke2 Nxe1 40. Kxe1 Kf6) 39. Kd3 $1 {[%emt 0:01:41]} Kd7 {[%emt 0:01:21]} 40. Ke3 {[%emt 0:00:00]} Kc7 {[%emt 0:00:00]} 41. Ba5+ {[%emt 0:21:28]} Kb7 {[%emt 0:24:50]} ({Better is} 41... Kd6 $15 42. Bb4+ Ke6) 42. Ke2 {[%emt 0:01:32]} (42. d5 $1 $11) 42... Kc8 $15 {[%emt 0:03:50]} 43. Bd2 {[%emt 0:01:53]} Kd7 {[%emt 0:00:45]} 44. Kf1 {[%emt 0:01:15] Inhibits Ng1.} Kc7 {[%emt 0:05:50]} 45. Ba5+ $1 {[%emt 0:01:48]} Kb7 {[%emt 0:00:25][%cal Oc6c5]} 46. Ke2 $1 {[%emt 0:00:39]} Nf4+ {[%emt 0:01:28]} 47. Ke3 {[%emt 0:00:26]} Kc8 {[%emt 0:00:32]} 48. Bb4 {[%emt 0:00:55]} Kd7 {[%emt 0:00:17]} 49. Ba5 {[%emt 0:00:57]} h5 {[%emt 0:00:27]} 50. Bd2 {[%emt 0:01:52]} Ke6 {[%emt 0:03:01]} 51. Ba5 {[%emt 0:00:23]} Nh3 $1 {[%emt 0:01:06] Threatens to win with ...f4+.} 52. Be1 {[%emt 0:00:48] [#]} (52. Ke2 $17 {was the only defense.}) 52... Kd7 $1 $19 {[%emt 0:09:47]} 53. d5 {[%emt 0:02:45]} (53. Ke2 $17) 53... c5 {[%emt 0:01:51]} 54. Kd3 $2 {[%emt 0:00:41]} (54. Ba5 {was called for.}) 54... b4 {[%emt 0:00:36] And now ...Ng1 would win.} 55. Ke2 $2 {[%emt 0:00:41]} (55. Bd2 f4 56. Bc1) 55... a5 {[%emt 0:01:37] Strongly threatening ...Ng1+.} 56. Bd2 {[%emt 0:00:30] [#]} Ng1+ $1 {[%emt 0:00:22]} 57. Ke3 {[%emt 0:00:31]} f4+ {[%emt 0:00:50]} 58. Ke4 {[%emt 0:00:31]} Ne2 {[%emt 0:00:02] White must now prevent ...Nd4.} 59. Kf5 {[%emt 0:01:30]} Nd4+ {[%emt 0:00:03]} 60. Kxg5 {[%emt 0:00:39]} Nxf3+ {[%emt 0:00:13] Weighted Error Value: White=0.71/Black=0.16 (very precise)} 0-1

[Event "Swietokrzyskie GM Chess-ch 2022"]
[Site "Zagnansk"]
[Date "2022.05.05"]
[Round "8.1"]
[White "Kowalski, IM Igor"]
[Black "Budisavljevic, GM Luka"]
[Result "1/2-1/2"]
[ECO "A40"]
[WhiteElo "2370"]
[BlackElo "2509"]
[Annotator "TA"]
[PlyCount "102"]
[EventDate "2022.04.29"]
[EventCountry "POL"]
[SourceTitle "playchess.com"]
[Source "ChessBase"]
[SourceQuality "1"]
[TimeControl "40/5400+30:1800+30"]

{[%evp 22,102,42,42,55,13,18,15,15,16,15,0,0,0,27,-15,-31,-21,-12,-20,-24,-22,-14,-59,-56,-60,-49,-97,50,43,48,-15,0,0,58,41,77,31,19,0,0,0,36,37,125,122,179,120,112,0,372,339,351,364,350,113,107,112,303,92,78,31,32,0,0,-15,-15,-15,-15,-8,0,0,0,0,0,0,0,0,0,0,0,0,0]} 1. d4 {[%emt 0:00:01]} e6 {[%emt 0:00:04]} 2. c4 {[%emt 0:00:04]} c5 {[%emt 0:00:03]} 3. d5 {[%emt 0:00:02]} exd5 {[%emt 0:00:05]} 4. cxd5 {[%emt 0:00:04]} d6 {[%emt 0:00:03]} 5. Nc3 {[%emt 0:00:04]} g6 {[%emt 0:00:04]} 6. e4 {[%emt 0:00:29]} Bg7 {[%emt 0:00:07]} 7. Nf3 {[%emt 0:00:21]} a6 {[%emt 0:00:08]} 8. a4 {[%emt 0:00:15]} Bg4 {[%emt 0:00:07]} 9. Be2 {[%emt 0:00:29]} Bxf3 {[%emt 0:00:04]} 10. Bxf3 {[%emt 0:00:04]} Nd7 {[%emt 0:00:04]} 11. O-O {[%emt 0:00:18]} Ngf6 {[%emt 0:00:04]} 12. Bf4 {[%emt 0:01:22]} Qe7 {[%emt 0:00:01] A70: Modern Benoni: 6 e4 g6 7 Nf3.} 13. e5 {[%emt 0:21:18]} dxe5 {[%emt 0:00:02] [#]} 14. d6 $1 {[%emt 0:00:04]} Qe6 {[%emt 0:00:03]} 15. Re1 {[%emt 0:01:03]} O-O {[%emt 0:03:27]} 16. Bxb7 {[%emt 0:03:48] A strong pair of Bishops.} Ra7 {[%emt 0:23:01]} 17. Bf3 {[%emt 0:04:20] [#]} Ne8 $146 {[%emt 0:05:04][%cal Bf6e8,Be8d6,Bd6f5,Bf5e3][%mdl 32]} ({Predecessor:} 17... Rb8 18. Re2 Rb6 19. Qe1 Ne8 20. Bd5 Qxd6 21. Rd1 Qf8 22. Be3 Rb4 23. Bc6 Nef6 {0-1 (56) Fedoseev,V (2687)-Indjic,A (2607) Chess.com INT 2021}) 18. Bg5 {[%emt 0:06:56]} (18. Bd5 $5 {[%cal Rd5e6]} Qf6 19. Be3 Nxd6 20. b4 $11) 18... Nxd6 {[%emt 0:02:27]} 19. Bd5 {[%emt 0:00:38]} Qe8 {[%emt 0:00:27]} 20. a5 {[%emt 0:24:27]} h6 {[%emt 0:08:33]} 21. Be3 {[%emt 0:03:17]} Nf5 {[%emt 0:00:12]} 22. Ne4 {[%emt 0:06:24]} Qe7 {[%emt 0:05:40]} 23. Qc2 {[%emt 0:01:47][%cal Re3c5]} Nxe3 {[%emt 0:01:44]} 24. Rxe3 {[%emt 0:01:01]} (24. fxe3 $15 Kh7 25. Nc3) 24... Rb8 {[%emt 0:06:57]} (24... Kh7 $17 {...f5 is the strong threat.} 25. Rc3 Rc7) 25. Rf3 $14 {[%emt 0:01:34][%mdl 1024] Prevents f5. White has compensation.} Rf8 {[%emt 0:03:28]} 26. Rc1 {[%emt 0:03:17]} (26. Qb3 $1 $14) 26... Rc7 {[%emt 0:03:59]} 27. Qc4 {[%emt 0:01:11]} Nb8 {[%emt 0:01:33]} ({Better is} 27... Nf6 $11) 28. b4 {[%emt 0:03:33][%cal Rb4c5]} (28. Nxc5 e4 29. Rg3 Bxb2 30. Rxg6+ Kh7 $19) 28... Kh7 {[%emt 0:02:17]} 29. Nxc5 {[%emt 0:05:09]} (29. g4 $16) 29... f5 {[%emt 0:00:06]} 30. Rfc3 {[%emt 0:02:27]} e4 {[%emt 0:01:14]} 31. R3c2 $36 {[%emt 0:00:03][%mdl 2048] White is pushing.} Rfc8 {[%emt 0:16:21]} 32. g3 {[%emt 0:04:59]} Be5 {[%emt 0:01:54]} ({Black should try} 32... h5 $14) 33. Qb3 $1 $16 {[%emt 0:02:29]} Qe8 {[%emt 0:12:07]} (33... h5 $16) 34. Bb7 {[%emt 0:03:11]} (34. Bc4 $18) 34... Rd8 {[%emt 0:01:29]} 35. Bxa6 {[%emt 0:00:09]} (35. Kg2 $16) 35... Rxc5 $4 {[%emt 0:01:41][%mdl 8192]} 36. Rxc5 $18 {[%emt 0:00:11]} Nxa6 {[%emt 0:00:00]} 37. Rc6 {[%emt 0:00:58]} Nb8 {[%emt 0:01:47]} 38. Re6 {[%emt 0:00:57]} (38. Rb6 $1 $18) 38... Qf7 $16 {[%emt 0:00:03] Inhibits Qe6.} 39. Qc4 $1 {[%emt 0:00:03]} Bb2 {[%emt 0:02:04]} (39... Rd4 $16 {was necessary.} 40. Qc8 Rd8 41. Qxd8 Qxe6) 40. Rc2 $2 {[%emt 0:00:00]} (40. Rb6 $1 $18 {is the precise move to win.} Qg7 41. Rc2) 40... Bg7 {[%emt 0:00:00] [#] And now ...Rd4 would win.} (40... Rd1+ $2 41. Kg2 $18) 41. a6 {[%emt 0:25:19]} (41. Rxe4 $2 Rd1+ 42. Kg2 Qb7 $19) (41. Rb6 $1 $16 Qd7 42. Kg2) 41... Rd4 $1 $14 {[%emt 0:25:21]} 42. Qc8 {[%emt 0:04:51]} (42. Qa2 $5 {[%cal Ra6a7]} Rd1+ 43. Kg2 $11) 42... f4 {[%emt 0:00:58] ( -> ...Rd1+). The position is equal.} 43. Rc1 {[%emt 0:02:00][%cal Bc2c1,Bc1f1,Bf1f2][%mdl 32] [#] Prevents Rd1+. aiming for a7.} ({Don't blunder} 43. Rc7 $2 Rd1+ 44. Kg2 f3+ 45. Kh3 {[#]} Rd7 $1 46. Rxe4 (46. Rec6 $2 h5 $19) 46... Rxc7 $19) 43... fxg3 $1 {[%emt 0:00:40]} 44. hxg3 {[%emt 0:00:05] [#]} Rd2 $1 {[%emt 0:00:14]} 45. Rf1 {[%emt 0:00:23] [#] Active counter play!} Rxf2 $1 {[%emt 0:04:13]} 46. Rxf2 {[%emt 0:00:31] The board is on fire.} Bd4 {[%emt 0:00:01][%mdl 64] Pin} 47. Qb7 {[%emt 0:00:45]} Nd7 $1 {[%emt 0:00:01]} 48. Ref6 {[%emt 0:00:12]} Qxf6 {[%emt 0:00:28][%mdl 64] Pin} 49. Qxd7+ {[%emt 0:00:09]} Kh8 {[%emt 0:00:17]} 50. Qc8+ {[%emt 0:01:24]} Kh7 {[%emt 0:00:46]} 51. Qd7+ {[%emt 0:00:13]} Kh8 {[%emt 0:00:05] White really could win this.  Weighted Error Value: White=0.31/Black=0.30} 1/2-1/2

[Event "Swietokrzyskie GM Chess-ch 2022"]
[Site "Zagnansk"]
[Date "2022.05.05"]
[Round "8.2"]
[White "Mikrut, IM Dariusz"]
[Black "Szpar, IM Milosz"]
[Result "1/2-1/2"]
[ECO "D25"]
[WhiteElo "2361"]
[BlackElo "2434"]
[Annotator "TA"]
[PlyCount "100"]
[EventDate "2022.04.29"]
[EventCountry "POL"]
[SourceTitle "playchess.com"]
[Source "ChessBase"]
[SourceQuality "1"]
[TimeControl "40/5400+30:1800+30"]

{[%evp 13,100,23,45,48,44,44,42,24,14,21,18,14,29,29,31,41,31,0,14,-25,-17,-26,-27,-31,0,-49,-35,-37,-43,-39,-44,-46,-45,-41,-29,-29,-24,-34,-20,-14,-16,-34,0,0,0,0,0,0,0,0,0,0,0,0,0,0,0,0,0,0,0,0,0,0,0,0,0,0,119,0,0,0,0,0,0,0,0,0,0,0,0,0,0,0,0,0,0,0,0]} 1. Nf3 {[%emt 0:00:14]} d5 {[%emt 0:00:16]} 2. d4 {[%emt 0:00:06]} Nf6 {[%emt 0:00:16]} 3. c4 {[%emt 0:00:06]} dxc4 {[%emt 0:00:24]} 4. e3 {[%emt 0:00:09]} Bg4 {[%emt 0:00:25]} 5. h3 {[%emt 0:00:14]} Bh5 {[%emt 0:00:23]} 6. Bxc4 {[%emt 0:00:09]} e6 {[%emt 0:00:45]} 7. Nc3 {[%emt 0:00:28]} a6 {[%emt 0:00:56]} 8. g4 {[%emt 0:05:48] D22: Queen's Gambit Accepted: 3 Nf3 a6 4 e3.} Bg6 {[%emt 0:00:25]} 9. h4 {[%emt 0:00:14]} Bb4 {[%emt 0:05:27] [#]} 10. Ne5 $146 {[%emt 0:13:40] White wants to play f3. White is slightly better.} ({Predecessor:} 10. h5 Be4 11. g5 Nd5 12. Bd2 Nxc3 13. bxc3 Be7 14. Rg1 g6 15. Ne5 Bxg5 16. Qg4 {1-0 (27) Elmquist,R-Shannon,P USA 1982}) 10... Nbd7 {[%emt 0:08:12] [#] Hoping for ...Nxe5.} 11. Nxg6 {[%emt 0:09:53]} ({Don't go for} 11. Qa4 $2 Bxc3+ 12. bxc3 b5 $19) 11... hxg6 {[%emt 0:00:09]} 12. Qf3 {[%emt 0:07:42]} b5 {[%emt 0:11:08]} 13. Bb3 {[%emt 0:01:28]} c5 {[%emt 0:00:43]} 14. g5 {[%emt 0:06:36]} Nh5 {[%emt 0:01:11]} 15. Qe4 {[%emt 0:16:22]} (15. O-O $5 {[%cal Rd4d5]}) 15... Rc8 {[%emt 0:06:25]} 16. Bd2 {[%emt 0:00:16]} O-O {[%emt 0:13:35]} 17. a3 {[%emt 0:02:17]} Ba5 {[%emt 0:02:17]} 18. Rd1 {[%emt 0:00:16]} Qc7 {[%emt 0:09:32]} 19. Kf1 {[%emt 0:09:26]} (19. d5 $11 c4 20. Bc2) 19... cxd4 {[%emt 0:02:45]} 20. exd4 {[%emt 0:00:14]} Qb8 {[%emt 0:00:46]} 21. Rh3 {[%emt 0:03:38]} Nb6 {[%emt 0:03:20]} 22. Ne2 {[%emt 0:05:40]} Bxd2 {[%emt 0:01:15]} 23. Rxd2 {[%emt 0:00:05]} Nc4 {[%emt 0:03:59]} 24. Rc2 {[%emt 0:00:32]} Nd6 {[%emt 0:01:42]} 25. Qe5 {[%emt 0:01:24]} Rxc2 {[%emt 0:07:44]} 26. Bxc2 {[%emt 0:00:04] [#]} Qc8 $1 {[%emt 0:01:07]} 27. Bb3 {[%emt 0:08:38]} ({Wrong is} 27. Bxg6 $2 Nc4 28. Qc5 fxg6 $19) (27. Bd3 Nc4) 27... Nc4 {[%emt 0:01:56]} 28. Bxc4 {[%emt 0:02:13]} bxc4 {[%emt 0:01:19]} 29. Qc5 {[%emt 0:05:16]} Qxc5 {[%emt 0:09:15]} 30. dxc5 $11 {[%emt 0:00:05][%mdl 4096] Endgame Rc3 is the strong threat. KRN-KRN} Rc8 {[%emt 0:01:55]} 31. Rc3 {[%emt 0:00:33]} Rxc5 {[%emt 0:00:09]} 32. b3 {[%emt 0:00:08]} Kf8 {[%emt 0:02:27]} 33. Rxc4 {[%emt 0:01:11]} Rxc4 {[%emt 0:01:01]} 34. bxc4 {[%emt 0:00:01] KN-KN} Ke7 {[%emt 0:00:18] And now ...Kd6 would win.} 35. Ke1 {[%emt 0:00:04]} Kd6 {[%emt 0:02:43] Strongly threatening ...Kc5.} 36. Kd2 {[%emt 0:00:05]} Kc5 {[%emt 0:00:47]} 37. Kd3 {[%emt 0:02:22]} e5 {[%emt 0:00:46]} 38. f3 {[%emt 0:01:17]} a5 {[%emt 0:01:01][%cal Ba6a5,Ba5a4][%mdl 32]} 39. Kc3 {[%emt 0:00:08]} a4 {[%emt 0:00:38]} 40. Kd3 {[%emt 0:00:00]} f5 {[%emt 0:00:00]} (40... f6 $11 {remains equal.}) 41. gxf6 {[%emt 0:25:04]} ({White must play} 41. Kc3 $16) 41... gxf6 {[%emt 0:16:40] The position is equal.} 42. Nc3 {[%emt 0:01:48]} Nf4+ {[%emt 0:00:56]} 43. Ke4 {[%emt 0:00:25]} Kxc4 {[%emt 0:00:21]} 44. Nxa4 {[%emt 0:00:05]} Kb3 {[%emt 0:00:36]} 45. Nc5+ {[%emt 0:00:46]} Kxa3 {[%emt 0:00:09]} 46. Nd7 {[%emt 0:00:10]} Ng2 {[%emt 0:00:08]} 47. Nxf6 {[%emt 0:00:31]} Nxh4 {[%emt 0:00:05]} 48. Ng4 {[%emt 0:00:11]} g5 {[%emt 0:00:25]} 49. Nxe5 {[%emt 0:00:11]} Kb4 {[%emt 0:00:18]} 50. Nf7 {[%emt 0:00:11]} Nxf3 {[%emt 0:00:07] Weighted Error Value: White=0.07 (flawless) /Black=0.11 (very precise)} 1/2-1/2

[Event "Swietokrzyskie GM Chess-ch 2022"]
[Site "Zagnansk"]
[Date "2022.05.05"]
[Round "8.3"]
[White "Pacan-Milej, FM Kosma"]
[Black "Chatalbashev, GM Boris"]
[Result "1/2-1/2"]
[ECO "A61"]
[WhiteElo "2404"]
[BlackElo "2539"]
[Annotator "TA"]
[PlyCount "82"]
[EventDate "2022.04.29"]
[EventCountry "POL"]
[SourceTitle "playchess.com"]
[Source "ChessBase"]
[SourceQuality "1"]
[TimeControl "40/5400+30:1800+30"]

{[%evp 20,82,27,24,45,30,40,41,39,22,29,14,7,11,9,0,17,27,29,0,0,0,0,14,6,3,108,103,101,88,89,87,96,93,164,150,159,166,151,105,104,36,97,70,77,0,0,0,0,-8,-8,-9,-9,-9,-9,-9,-9,-9,-8,-8,-8,-8,0,0,0]} 1. d4 {[%emt 0:00:05]} Nf6 {[%emt 0:00:06]} 2. c4 {[%emt 0:00:15]} e6 {[%emt 0:00:06]} 3. Nf3 {[%emt 0:00:36]} c5 {[%emt 0:00:07]} 4. d5 {[%emt 0:00:07]} d6 {[%emt 0:00:06]} 5. Nc3 {[%emt 0:01:03]} exd5 {[%emt 0:00:10]} 6. cxd5 {[%emt 0:00:06]} g6 {[%emt 0:00:06]} 7. h3 {[%emt 0:02:51]} Bg7 {[%emt 0:00:12]} 8. e4 {[%emt 0:00:23]} O-O {[%emt 0:00:09]} 9. Bd3 {[%emt 0:00:44]} a6 {[%emt 0:00:18]} 10. O-O {[%emt 0:12:08]} b5 {[%emt 0:00:25]} 11. Re1 {[%emt 0:00:53] 11.Bf4 is vanishing.} Nbd7 {[%emt 0:00:38] A70: Modern Benoni: 6 e4 g6 7 Nf3.} 12. Bf4 {[%emt 0:02:20]} Qb6 {[%emt 0:00:44]} 13. Qd2 {[%emt 0:07:35]} Re8 {[%emt 0:00:33] White is slightly better.} 14. Rab1 {[%emt 0:25:34]} Bb7 {[%emt 0:07:08]} 15. a3 {[%emt 0:22:16]} c4 {[%emt 0:03:38]} 16. Bc2 {[%emt 0:00:33]} Nc5 {[%emt 0:00:09] [#]} 17. Be3 $146 {[%emt 0:02:00]} ({Predecessor:} 17. Bh6 a5 18. Bxg7 Kxg7 19. Qd4 b4 20. g4 h6 21. h4 b3 22. g5 hxg5 23. hxg5 bxc2 24. gxf6+ {½-½ (58) Krumm,G (1990)-Blank,W (2204) GER email 2008}) 17... Rac8 {[%emt 0:06:12]} 18. Bd4 {[%emt 0:04:05]} a5 {[%emt 0:10:54]} 19. b4 {[%emt 0:03:24]} cxb3 $1 {[%emt 0:00:09]} 20. Bxb3 {[%emt 0:00:10]} b4 {[%emt 0:11:43]} 21. axb4 {[%emt 0:01:46]} axb4 {[%emt 0:00:58]} 22. Na4 $36 {[%emt 0:01:47][%mdl 2048] White fights for an advantage.} Qb5 (22... Nfxe4 $11 {keeps the balance.} 23. Nxb6 Nxd2 24. Nxc8 Rxc8 25. Nxd2 Bxd4) 23. Nxc5 $16 {[%emt 0:01:34]} dxc5 {[%emt 0:00:17]} 24. Bxf6 {[%emt 0:00:19]} Bxf6 {[%emt 0:00:07]} 25. e5 {[%emt 0:00:12]} Bg7 {[%emt 0:00:09] [#]} 26. d6 $1 {[%emt 0:00:47] Threatens to win with d7.} c4 {[%emt 0:30:17] [#]} (26... Qd7 $16) 27. d7 $1 $18 {[%emt 0:00:28]} cxb3 {[%emt 0:00:08]} 28. Rxb3 {[%emt 0:05:28]} ({Resist} 28. dxe8=Q+ Rxe8 29. Rxb3 Bf8 $16) (28. dxc8=Q Rxc8 29. Rxb3 Bf8 $16) (28. dxe8=N Rxe8 29. Rxb3 Bf8 $16) 28... Bf8 {[%emt 0:00:14] [#]} 29. dxe8=Q {[%emt 0:01:24] 0x0.001e8273f1f2dp-1022s more active pieces.} ({Don't take} 29. dxc8=N Rxc8 30. Rd3 b3 $16) ({Don't do} 29. dxe8=R Rxe8 30. Qd3 Qd5 $16) ({White should try} 29. Rd3 $1) 29... Rxe8 $16 {[%emt 0:00:38]} 30. Reb1 {[%emt 0:01:45]} (30. Rd3 $16) 30... Qa6 {[%emt 0:13:43]} ({Black should play} 30... Bd5 $14) 31. Qf4 {[%emt 0:01:18]} Bd5 {[%emt 0:00:45]} 32. Rxb4 {[%emt 0:00:44]} (32. R3b2 $16) 32... Bxb4 $11 {[%emt 0:00:07] The position is equal.} 33. Rxb4 {[%emt 0:00:26]} Qe2 {[%emt 0:01:05]} 34. Rb1 {[%emt 0:01:47]} Bxf3 {[%emt 0:00:23]} 35. Qxf3 {[%emt 0:00:31]} Qxf3 {[%emt 0:00:19]} 36. gxf3 {[%emt 0:00:04]} Rxe5 {[%emt 0:00:06] KR-KR} 37. Rb4 {[%emt 0:00:19]} Kg7 {[%emt 0:00:08]} 38. Kg2 {[%emt 0:00:08]} Rf5 {[%emt 0:00:09]} 39. f4 {[%emt 0:01:10]} Kh6 {[%emt 0:00:43]} 40. Kg3 {[%emt 0:00:00]} Kh5 {[%emt 0:00:00]} 41. Rb7 {[%emt 0:16:22]} h6 {[%emt 0:19:14] Weighted Error Value: White=0.10 (very precise) /Black=0.16 (very precise)} 1/2-1/2

[Event "Swietokrzyskie GM Chess-ch 2022"]
[Site "Zagnansk"]
[Date "2022.05.05"]
[Round "8.4"]
[White "Fus, FM Jakub"]
[Black "Tazbir, GM Marcin"]
[Result "1/2-1/2"]
[ECO "B31"]
[WhiteElo "2377"]
[BlackElo "2506"]
[Annotator "TA"]
[PlyCount "74"]
[EventDate "2022.04.29"]
[EventCountry "POL"]
[SourceTitle "playchess.com"]
[Source "ChessBase"]
[SourceQuality "1"]
[TimeControl "40/5400+30:1800+30"]

{[%evp 11,74,30,33,7,32,18,24,16,16,11,12,12,8,23,15,13,36,13,27,13,14,13,13,13,13,7,22,14,17,14,20,0,9,0,0,0,0,-31,-32,-35,-31,-33,-21,-38,-36,-27,-39,-35,0,0,0,0,0,-29,-22,-131,0,0,0,0,0,0,0,0,0]} 1. e4 {[%emt 0:00:10]} c5 {[%emt 0:00:06]} 2. Nf3 {[%emt 0:00:16]} Nc6 {[%emt 0:00:07]} 3. Bb5 {[%emt 0:01:40]} g6 {[%emt 0:00:05]} 4. O-O {[%emt 0:01:24]} Bg7 {[%emt 0:00:03]} 5. Bxc6 {[%emt 0:02:29]} dxc6 {[%emt 0:00:20]} 6. d3 {[%emt 0:00:21]} e5 {[%emt 0:00:06]} 7. Nc3 {[%emt 0:02:31] B31: Sicilian: 2...Nc6 3 Bb5 g6.} Qc7 {[%emt 0:02:09]} 8. Be3 {[%emt 0:03:10]} b6 {[%emt 0:00:09]} 9. Qc1 {[%emt 0:01:47] White has an edge.} Nf6 {[%emt 0:06:10]} 10. Bh6 {[%emt 0:05:01] [#]} O-O $146 {[%emt 0:00:30][%cal Be8g8,Bg8g7,Bg7h7,Bh7g6][%mdl 32]} ({Predecessor:} 10... Bxh6 11. Qxh6 Nh5 12. h3 f6 13. Ne2 Qf7 14. a4 Ng7 15. c3 O-O 16. Qe3 Ba6 {½-½ (31) Magomedov,M (2450)-Lanka,Z (2535) Cappelle la Grande 1994}) 11. Bxg7 {[%emt 0:02:10]} Kxg7 {[%emt 0:00:03]} 12. h3 {[%emt 0:00:43]} Nh5 {[%emt 0:05:12]} 13. Ne2 {[%emt 0:02:45]} h6 {[%emt 0:07:17]} 14. b3 {[%emt 0:09:09]} a5 {[%emt 0:04:02]} 15. a4 {[%emt 0:15:06]} Kh7 {[%emt 0:01:53]} (15... Be6 {looks sharper.} 16. Nh2 g5 17. Ng4 Nf4) 16. Nh2 {[%emt 0:05:24]} g5 {[%emt 0:02:54]} 17. Qd1 {[%emt 0:01:39]} f6 {[%emt 0:07:45]} 18. Ng4 {[%emt 0:02:51]} Be6 {[%emt 0:10:21]} 19. Ne3 {[%emt 0:01:13]} Ng7 {[%emt 0:01:56]} 20. Ng3 {[%emt 0:02:08]} Kg6 {[%emt 0:00:07]} 21. Qf3 {[%emt 0:12:09]} Qd7 {[%emt 0:01:36]} 22. Rfd1 {[%emt 0:00:12]} h5 {[%emt 0:05:13]} 23. Rd2 {[%emt 0:00:38]} Rh8 {[%emt 0:05:47]} 24. Re1 {[%emt 0:01:50]} g4 {[%emt 0:08:47]} 25. hxg4 {[%emt 0:02:19]} Bxg4 {[%emt 0:02:59]} 26. Nxg4 {[%emt 0:01:24]} hxg4 {[%emt 0:00:05]} 27. Qe3 {[%emt 0:02:26]} Ne6 {[%emt 0:01:49] White must now prevent ...Qh7.} 28. f3 $1 {[%emt 0:03:44]} Nf4 {[%emt 0:03:32] Strongly threatening ...Rag8.} 29. c3 {[%emt 0:08:51]} Qh7 {[%emt 0:05:59]} 30. fxg4 {[%emt 0:00:05]} ({Much worse is} 30. Kf1 Qh4 31. Nf5 Qh1+ 32. Qg1 gxf3 33. gxf3+ Qxg1+ 34. Kxg1 Kf7 $17) 30... Qh2+ {[%emt 0:00:13]} 31. Kf1 {[%emt 0:00:06]} Rad8 {[%emt 0:13:39][%cal Od8d3] ...Rxd3! is the strong threat.} 32. Qf3 {[%emt 0:00:35]} Rh3 {[%emt 0:04:23]} 33. Kf2 {[%emt 0:00:09] [#]} (33. Re3 $11 {was the only way to keep the balance.}) 33... Rdh8 {[%emt 0:00:08]} ({Black should play} 33... Rxd3 $1 $17 {[%mdl 512]} 34. Rxd3 {[#]} Qxg3+ $1 35. Qxg3 Nxd3+ 36. Qxd3 Rxd3) 34. Rdd1 $11 {[%emt 0:01:17] The position is equal.} Rxg3 {[%emt 0:00:45]} 35. Qxg3 {[%emt 0:00:05] Really sharp!} Nh3+ $1 {[%emt 0:00:02]} 36. Kf3 {[%emt 0:00:03]} Ng5+ {[%emt 0:00:03]} 37. Kf2 {[%emt 0:00:03] Threatens to win with Qxh2.} Nh3+ $1 {[%emt 0:00:03] Weighted Error Value: White=0.12 (very precise) /Black=0.07 (flawless)} 1/2-1/2